fUST/lending_fUST_20240226
["ID","MTS","AMOUNT","RATE_DAILY","PERIOD"]
[315216983,1708945844087,-1090.66,0.0002,2]
[315216984,1708945844095,-500.0,0.0002,2]
[315216985,1708945844105,-500.0,0.0002,2]
[315216986,1708945844114,-1193.76,0.0002,2]
[315216987,1708945844123,-800.2,0.0002,2]
[315216988,1708945844132,-19359.6,0.0002,2]
[315216989,1708945844142,-3717.21,0.0002,2]
[315216990,1708945844151,-1541.11,0.0002,2]
[315216991,1708945844162,-609.03734484,0.0002,2]
[315216992,1708945844171,-576.44,0.0002,2]
[315216993,1708945844181,-500.0,0.0002,2]
[315216994,1708945844190,-208.72177889,0.0002,2]
[315216995,1708945844200,-6999.66,0.0002,2]
[315216996,1708945844209,-394.19851739,0.0002,2]
[315216997,1708945844218,-652.77,0.0002,2]
[315216998,1708945844227,-500.0,0.0002,2]
[315216999,1708945844240,-814.31,0.0002,2]
[315217000,1708945844250,-500.0,0.0002,2]
[315217001,1708945844260,-1124.26,0.0002,2]
[315217002,1708945844269,-500.0,0.0002,2]
[315217003,1708945844279,-1860.39,0.0002,2]
[315217004,1708945844289,-19086.71,0.0002,2]
[315217005,1708945844299,-2240.27,0.0002,2]
[315217006,1708945844308,-711.72,0.0002,2]
[315217007,1708945844317,-3373.09,0.0002,2]
[315217008,1708945844326,-2292.41,0.0002,2]
[315217009,1708945844335,-1406.93,0.0002,2]
[315217010,1708945844345,-2179.82,0.0002,2]
[315217011,1708945844354,-1873.17,0.0002,2]
[315217012,1708945844364,-500.0,0.0002,2]
[315217013,1708945844373,-500.0,0.0002,2]
[315217014,1708945844383,-1773.48,0.0002,2]
[315217015,1708945844392,-1781.94,0.0002,2]
[315217016,1708945844401,-500.0,0.0002,2]
[315217017,1708945844410,-500.0,0.0002,2]
[315217018,1708945844420,-630.67326243,0.0002,2]
[315217019,1708945844429,-733.39,0.0002,2]
[315217020,1708945844438,-2360.71,0.0002,2]
[315217021,1708945844447,-9635.29,0.0002,2]
[315217022,1708945844457,-500.0,0.0002,2]
[315217023,1708945844467,-166.666666,0.00020076,2]
[315217024,1708945844476,-1658.55795579,0.00020122,2]
[315217025,1708945844485,-192.75258672,0.00020134,2]
[315217026,1708945844495,-300.0,0.00020143,2]
[315217027,1708945844504,-532.06082476,0.00020169,2]
[315217028,1708945844516,-927.25048019,0.00020169,2]
[315217029,1708945844525,-1000.0,0.00020169,2]
[315217030,1708945844535,-539.33924156,0.00020169,2]
[315217031,1708945844544,-480.91934348,0.00020169,2]
[315217032,1708945844553,-852.2875088,0.00020169,2]
[315217033,1708945844563,-1000.0,0.00020169,2]
[315217034,1708945844573,-653.58175349,0.00020169,2]
[315217035,1708945844582,-155.00620025,0.00020172,2]
[315217036,1708945844591,-197.93020548,0.00020172,2]
[315217059,1708945849455,-16381.22,0.00019178,2]
[315217060,1708945849465,-16381.22,0.00019452,2]
[315217062,1708945849475,-153.0,0.000197,2]
[315217063,1708945849485,-16381.22,0.00019726,2]
[315217064,1708945849497,-16381.22,0.0002,2]
[315217065,1708945849507,-1624.6736419,0.00020172,2]
[315217067,1708945849517,-385.07871845,0.00020173,2]
[315217068,1708945849526,-640.03091446,0.00020173,2]
[315217070,1708945849535,-19630.34289464,0.00020175,2]
[315217071,1708945849544,-191.16066063,0.00020175,2]
[315217072,1708945849554,-5000.0,0.00020175,2]
[315217073,1708945849563,-5000.0,0.00020175,2]
[315217074,1708945849572,-28709.76182114,0.00020175,2]
[315217075,1708945991805,5000.0,0.00021,21]
[315217123,1708947033966,1333.06671999,0.0002751,120]
[315217143,1708947038462,-677.52336534,0.0001804,2]
[315217145,1708947038471,-216.229696,0.00018041,2]
[315217147,1708947038480,-4699.22949954,0.00018299,2]
[315217149,1708947038490,-340.2397206,0.000183,2]
[315217151,1708947038504,-216.1578123,0.00018614,2]
[315217153,1708947038514,-906.20429479,0.00018809,2]
[315217155,1708947038524,-969.85090344,0.00019,2]
[315217157,1708947038535,-153.0,0.00019,2]
[315217159,1708947038545,-1333.06671999,0.00019176,2]
[315217161,1708947038554,-197.02517615,0.00019177,2]
[315217163,1708947038564,-5947.30341435,0.00019177,2]
[315217165,1708947038575,-1211.87883635,0.00019177,2]
[315217167,1708947038586,-502.11011131,0.00019178,2]
[315217169,1708947038596,-500.0,0.00019178,2]
[315217171,1708947038606,-500.0,0.00019178,2]
[315217173,1708947038615,-500.0,0.00019178,2]
[315217175,1708947038625,-500.0,0.00019178,2]
[315217177,1708947038634,-500.0,0.00019178,2]
[315217179,1708947038644,-399.1209651,0.00019178,2]
[315217181,1708947038653,-500.0,0.00019178,2]
[315217183,1708947038663,-1406.22,0.00019178,2]
[315217185,1708947038672,-500.0,0.00019178,2]
[315217187,1708947038682,-500.0,0.00019178,2]
[315217189,1708947038691,-500.0,0.00019178,2]
[315217191,1708947038701,-500.0,0.00019178,2]
[315217193,1708947038710,-500.0,0.00019178,2]
[315217195,1708947038719,-500.0,0.00019178,2]
[315217197,1708947038728,-500.0,0.00019178,2]
[315217199,1708947038738,-501.00040851,0.00019178,2]
[315217201,1708947038747,-500.0,0.00019178,2]
[315217203,1708947038757,-501.15891144,0.00019178,2]
[315217205,1708947038767,-500.0,0.00019178,2]
[315217206,1708947038778,-500.0,0.00019178,2]
[315217207,1708947038787,-500.0,0.00019178,2]
[315217208,1708947038797,-500.0,0.00019178,2]
[315217209,1708947038806,-500.0,0.00019178,2]
[315217210,1708947038815,-500.0,0.00019178,2]
[315217211,1708947038824,-500.0,0.00019178,2]
[315217213,1708947038833,-611.90746335,0.00019178,2]
[315217215,1708947038843,-500.0,0.00019178,2]
[315217217,1708947038852,-500.0,0.00019178,2]
[315217219,1708947038861,-500.0,0.00019178,2]
[315217221,1708947038871,-500.0,0.00019178,2]
[315217223,1708947038880,-500.0,0.00019178,2]
[315217225,1708947038889,-500.0,0.00019178,2]
[315217227,1708947038899,-500.76681216,0.00019178,2]
[315217229,1708947038909,-500.0,0.00019178,2]
[315217231,1708947038918,-500.3462092,0.00019178,2]
[315217233,1708947038927,-500.0,0.00019178,2]
[315217235,1708947038936,-500.0,0.00019178,2]
[315217237,1708947038946,-500.0,0.00019178,2]
[315217239,1708947038955,-500.0,0.00019178,2]
[315217241,1708947038964,-500.0,0.00019178,2]
[315217242,1708947038973,-500.0,0.00019178,2]
[315217243,1708947038983,-359.8403748,0.00019178,2]
[315217245,1708947038992,-501.0884164,0.00019178,2]
[315217246,1708947039002,-234.57397735,0.00019178,2]
[315217247,1708947039011,-500.0,0.00019178,2]
[315217248,1708947039021,-500.0,0.00019178,2]
[315217249,1708947039031,-500.0,0.00019178,2]
[315217250,1708947039041,-500.0,0.00019178,2]
[315217251,1708947039051,-500.0,0.00019178,2]
[315217252,1708947039061,-500.58116796,0.00019178,2]
[315217253,1708947039071,-266.51557641,0.00019178,2]
[315217254,1708947039081,-445.14631796,0.00019178,2]
[315217255,1708947039110,-54.85368204,0.00019178,2]
[315217256,1708947039119,-238.35007482,0.00019178,2]
[315217257,1708947039129,-500.0,0.00019178,2]
[315217258,1708947039140,-500.0,0.00019178,2]
[315217259,1708947039151,-500.0,0.00019178,2]
[315217260,1708947039162,-500.0,0.00019178,2]
[315217261,1708947039173,-175.10182328,0.00019178,2]
[315217262,1708947039184,-500.0,0.00019178,2]
[315217263,1708947039194,-501.16229543,0.00019178,2]
[315217264,1708947039205,-500.0,0.00019178,2]
[315217265,1708947039215,-151.0,0.00019178,2]
[315217266,1708947039225,-500.0,0.00019178,2]
[315217267,1708947039236,-500.0,0.00019178,2]
[315217268,1708947039246,-500.0,0.00019178,2]
[315217269,1708947039256,-602.29,0.00019178,2]
[315217270,1708947039271,-500.0,0.00019178,2]
[315217271,1708947039280,-500.0,0.00019178,2]
[315217272,1708947039289,-360.90910848,0.00019178,2]
[315217273,1708947039411,-511.17,0.00019178,2]
[315217274,1708947039421,-500.0,0.00019178,2]
[315217275,1708947039431,-500.0,0.00019178,2]
[315217276,1708947039442,-500.0,0.00019178,2]
[315217277,1708947039452,-646.4,0.00019178,2]
[315217278,1708947039462,-500.0,0.00019178,2]
[315217279,1708947039472,-500.0,0.00019178,2]
[315217280,1708947039481,-500.0,0.00019178,2]
[315217281,1708947039492,-500.0,0.00019178,2]
[315217282,1708947039502,-566.16513416,0.00019178,2]
[315217283,1708947039512,-1144.02,0.00019178,2]
[315217284,1708947039525,-500.0,0.00019178,2]
[315217285,1708947039535,-500.0,0.00019178,2]
[315217286,1708947039545,-501.16867912,0.00019178,2]
[315217287,1708947039555,-500.0,0.00019178,2]
[315217288,1708947039566,-2734.75,0.00019178,2]
[315217289,1708947039577,-1145.29,0.00019178,2]
[315217290,1708947039587,-500.0,0.00019178,2]
[315217291,1708947039597,-1275.67,0.00019178,2]
[315217292,1708947039610,-500.0,0.00019178,2]
[315217293,1708947039620,-475.47317219,0.00019178,2]
[315217294,1708947039630,-588.75636197,0.00019178,2]
[315217295,1708947039642,-500.0,0.00019178,2]
[315217296,1708947039653,-505.83665894,0.00019178,2]
[315217297,1708947039663,-500.0,0.00019178,2]
[315217298,1708947039673,-500.0,0.00019178,2]
[315217299,1708947039683,-500.0,0.00019178,2]
[315217300,1708947039694,-500.0,0.00019178,2]
[315217301,1708947039703,-500.89874379,0.00019178,2]
[315217302,1708947039713,-500.0,0.00019178,2]
[315217303,1708947039722,-502.37578705,0.00019178,2]
[315217304,1708947039732,-500.0,0.00019178,2]
[315217305,1708947039741,-500.0,0.00019178,2]
[315217306,1708947039751,-1538.45,0.00019178,2]
[315217307,1708947039760,-3092.0,0.00019178,2]
[315217308,1708947039770,-500.0,0.00019178,2]
[315217309,1708947039779,-500.0,0.00019178,2]
[315217310,1708947039789,-500.0,0.00019178,2]
[315217311,1708947039798,-1625.69,0.00019178,2]
[315217312,1708947039807,-500.0,0.00019178,2]
[315217313,1708947039815,-1247.12,0.00019178,2]
[315217314,1708947039825,-500.0,0.00019178,2]
[315217315,1708947039834,-500.0,0.00019178,2]
[315217316,1708947039846,-500.0,0.00019178,2]
[315217317,1708947039855,-500.0,0.00019178,2]
[315217318,1708947039865,-500.0,0.00019178,2]
[315217319,1708947039873,-500.0,0.00019178,2]
[315217320,1708947039883,-672.28,0.00019178,2]
[315217321,1708947039892,-500.0,0.00019178,2]
[315217322,1708947039901,-500.0,0.00019178,2]
[315217323,1708947039910,-640.38620748,0.00019178,2]
[315217324,1708947039919,-2163.98,0.00019178,2]
[315217325,1708947039928,-500.0,0.00019178,2]
[315217326,1708947039937,-501.32910414,0.00019178,2]
[315217327,1708947039946,-500.0,0.00019178,2]
[315217328,1708947039956,-500.0,0.00019178,2]
[315217329,1708947039965,-646.85521638,0.00019178,2]
[315217330,1708947039974,-312.51592479,0.00019178,2]
[315217331,1708947039983,-16070.97,0.00019178,2]
[315217332,1708947039992,-500.0,0.00019178,2]
[315217333,1708947040001,-500.0,0.00019178,2]
[315217334,1708947040010,-8832.35,0.00019178,2]
[315217335,1708947040020,-239.92493776,0.00019178,2]
[315217336,1708947040030,-500.0,0.00019178,2]
[315217337,1708947040039,-500.0,0.00019178,2]
[315217338,1708947040048,-500.0,0.00019178,2]
[315217339,1708947040057,-766.86,0.00019178,2]
[315217340,1708947040066,-1066.05,0.00019178,2]
[315217341,1708947040075,-500.0,0.00019178,2]
[315217342,1708947040084,-500.0,0.00019178,2]
[315217343,1708947040093,-500.0,0.00019178,2]
[315217344,1708947040103,-500.0,0.00019178,2]
[315217345,1708947040113,-500.0,0.00019178,2]
[315217346,1708947040122,-3562.33,0.00019178,2]
[315217347,1708947040132,-544.80572393,0.00019178,2]
[315217348,1708947040141,-500.0,0.00019178,2]
[315217349,1708947040151,-500.0,0.00019178,2]
[315217350,1708947040162,-500.0,0.00019178,2]
[315217351,1708947040171,-1454.25460362,0.00019178,2]
[315217352,1708947040181,-500.0,0.00019178,2]
[315217353,1708947040191,-509.9265336,0.00019178,2]
[315217354,1708947040201,-500.0,0.00019178,2]
[315217355,1708947040211,-500.0,0.00019178,2]
[315217356,1708947040220,-1077.42,0.00019178,2]
[315217357,1708947040230,-1504.71,0.00019178,2]
[315217358,1708947040239,-552.42,0.00019178,2]
[315217359,1708947040248,-500.0,0.00019178,2]
[315217360,1708947040259,-500.0,0.00019178,2]
[315217361,1708947040268,-500.0,0.00019178,2]
[315217362,1708947040279,-500.20438763,0.00019178,2]
[315217363,1708947040287,-18212.98,0.00019178,2]
[315217364,1708947040296,-652.41,0.00019178,2]
[315217365,1708947040305,-6708.01,0.00019178,2]
[315217366,1708947040314,-500.0,0.00019178,2]
[315217367,1708947040324,-500.0,0.00019178,2]
[315217368,1708947040333,-500.0,0.00019178,2]
[315217369,1708947040342,-503.09950777,0.00019178,2]
[315217370,1708947040351,-1782.88,0.00019178,2]
[315217371,1708947040361,-780.39,0.00019178,2]
[315217372,1708947040372,-500.0,0.00019178,2]
[315217373,1708947040381,-500.0,0.00019178,2]
[315217374,1708947040390,-500.0,0.00019178,2]
[315217375,1708947040399,-500.0,0.00019178,2]
[315217376,1708947040409,-1289.69,0.00019178,2]
[315217377,1708947040418,-500.0,0.00019178,2]
[315217378,1708947040427,-500.0,0.00019178,2]
[315217379,1708947040437,-2053.58,0.00019178,2]
[315217380,1708947040446,-500.0,0.00019178,2]
[315217381,1708947040455,-500.0,0.00019178,2]
[315217382,1708947040464,-1002.44,0.00019178,2]
[315217383,1708947040474,-500.0,0.00019178,2]
[315217384,1708947040483,-500.0,0.00019178,2]
[315217385,1708947040493,-500.0,0.00019178,2]
[315217386,1708947040502,-212.2436076,0.00019178,2]
[315217387,1708947040511,-500.0,0.00019178,2]
[315217388,1708947040523,-1717.07,0.00019178,2]
[315217389,1708947040532,-500.0,0.00019178,2]
[315217390,1708947040542,-2101.37,0.00019178,2]
[315217391,1708947040551,-1000.0,0.00019178,2]
[315217392,1708947040561,-502.22509866,0.00019178,2]
[315217393,1708947040571,-1633.45,0.00019178,2]
[315217394,1708947040579,-500.0,0.00019178,2]
[315217395,1708947040589,-500.0,0.00019178,2]
[315217396,1708947040599,-179.84917799,0.00019178,2]
[315217397,1708947040609,-500.45776838,0.00019178,2]
[315217398,1708947040618,-500.0,0.00019178,2]
[315217399,1708947040627,-500.0,0.00019178,2]
[315217400,1708947040636,-500.0,0.00019178,2]
[315217401,1708947040645,-500.0,0.00019178,2]
[315217402,1708947040654,-502.01865313,0.00019178,2]
[315217403,1708947040663,-500.0,0.00019178,2]
[315217404,1708947040672,-201.81516256,0.00019178,2]
[315217406,1708947040682,-1998.17,0.00019178,2]
[315217408,1708947040690,-500.0,0.00019178,2]
[315217409,1708947040699,-500.0,0.00019178,2]
[315217410,1708947040708,-500.0,0.00019178,2]
[315217411,1708947040718,-500.0,0.00019178,2]
[315217412,1708947040727,-500.0,0.00019178,2]
[315217413,1708947040736,-608.21516121,0.00019178,2]
[315217414,1708947040745,-500.0,0.00019178,2]
[315217415,1708947040754,-500.0,0.00019178,2]
[315217416,1708947040764,-563.17,0.00019178,2]
[315217417,1708947040774,-500.0,0.00019178,2]
[315217419,1708947040783,-501.16145419,0.00019178,2]
[315217420,1708947040792,-500.0,0.00019178,2]
[315217421,1708947040802,-165.532385,0.00019178,2]
[315217422,1708947040811,-166.666666,0.00019178,2]
[315217423,1708947040821,-165.826241,0.00019178,2]
[315217424,1708947040830,-401.1652708,0.000192,2]
[315217425,1708947040839,-306.0,0.0001937,2]
[315217426,1708947040848,-153.0,0.000194,2]
[315217427,1708947040857,-278.2948905,0.000194,2]
[315217428,1708947040866,-153.0,0.000194,2]
[315217429,1708947040875,-200.5826354,0.000194,2]
[315217430,1708947040884,-153.0,0.000194,2]
[315217431,1708947040893,-153.0,0.000194,2]
[315217432,1708947040902,-306.0,0.000194,2]
[315217433,1708947040911,-153.0,0.000194,2]
[315217434,1708947040919,-153.0,0.000194,2]
[315217435,1708947040930,-500.0,0.00019451,2]
[315217436,1708947040939,-500.0,0.00019451,2]
[315217437,1708947040948,-500.0,0.00019451,2]
[315217438,1708947040957,-500.0,0.00019451,2]
[315217439,1708947040966,-500.0,0.00019452,2]
[315217440,1708947040975,-500.0,0.00019452,2]
[315217441,1708947040984,-619.68506579,0.00019452,2]
[315217442,1708947040993,-500.0,0.00019452,2]
[315217443,1708947041003,-1406.22,0.00019452,2]
[315217444,1708947041012,-500.0,0.00019452,2]
[315217445,1708947041022,-500.0,0.00019452,2]
[315217446,1708947041030,-500.0,0.00019452,2]
[315217447,1708947041039,-500.0,0.00019452,2]
[315217448,1708947041048,-438.04326599,0.00019452,2]
[315217449,1708947041057,-500.0,0.00019452,2]
[315217450,1708947041066,-501.29706972,0.00019452,2]
[315217451,1708947041075,-500.0,0.00019452,2]
[315217452,1708947041084,-500.0,0.00019452,2]
[315217453,1708947041093,-500.0,0.00019452,2]
[315217454,1708947041102,-500.0,0.00019452,2]
[315217455,1708947041111,-500.0,0.00019452,2]
[315217456,1708947041121,-551.4523923,0.00019452,2]
[315217457,1708947041130,-500.0,0.00019452,2]
[315217458,1708947041139,-500.0,0.00019452,2]
[315217459,1708947041148,-500.0,0.00019452,2]
[315217460,1708947041156,-500.0,0.00019452,2]
[315217461,1708947041166,-500.0,0.00019452,2]
[315217462,1708947041175,-500.0,0.00019452,2]
[315217463,1708947041184,-500.0,0.00019452,2]
[315217464,1708947041194,-500.0,0.00019452,2]
[315217465,1708947041203,-500.0,0.00019452,2]
[315217466,1708947041212,-500.0,0.00019452,2]
[315217467,1708947041221,-500.0,0.00019452,2]
[315217468,1708947041230,-500.0,0.00019452,2]
[315217469,1708947041239,-500.0,0.00019452,2]
[315217470,1708947041249,-500.0,0.00019452,2]
[315217471,1708947041258,-153.98960683,0.00019452,2]
[315217472,1708947041267,-151.48714558,0.00019452,2]
[315217473,1708947041278,-500.0,0.00019452,2]
[315217474,1708947041287,-500.0,0.00019452,2]
[315217475,1708947041296,-602.29,0.00019452,2]
[315217476,1708947041305,-406.99210958,0.00019452,2]
[315217477,1708947041314,-511.17,0.00019452,2]
[315217478,1708947041323,-500.0,0.00019452,2]
[315217479,1708947041333,-507.80796114,0.00019452,2]
[315217480,1708947041342,-646.4,0.00019452,2]
[315217481,1708947041351,-1144.02,0.00019452,2]
[315217482,1708947041361,-477.02525582,0.00019452,2]
[315217483,1708947041370,-2734.75,0.00019452,2]
[315217484,1708947041379,-1145.29,0.00019452,2]
[315217485,1708947041388,-500.0,0.00019452,2]
[315217486,1708947041398,-1275.67,0.00019452,2]
[315217487,1708947041407,-500.0,0.00019452,2]
[315217488,1708947041416,-500.0,0.00019452,2]
[315217489,1708947041426,-500.0,0.00019452,2]
[315217490,1708947041435,-500.0,0.00019452,2]
[315217491,1708947041444,-500.0,0.00019452,2]
[315217492,1708947041453,-500.0,0.00019452,2]
[315217493,1708947041462,-1538.45,0.00019452,2]
[315217494,1708947041471,-3092.0,0.00019452,2]
[315217495,1708947041481,-1625.69,0.00019452,2]
[315217496,1708947041491,-500.0,0.00019452,2]
[315217498,1708947041502,-1247.12,0.00019452,2]
[315217500,1708947041512,-500.0,0.00019452,2]
[315217501,1708947041522,-501.29954357,0.00019452,2]
[315217503,1708947041532,-500.0,0.00019452,2]
[315217504,1708947041542,-500.0,0.00019452,2]
[315217505,1708947041552,-500.0,0.00019452,2]
[315217506,1708947041561,-500.0,0.00019452,2]
[315217508,1708947041571,-672.28,0.00019452,2]
[315217509,1708947041582,-500.0,0.00019452,2]
[315217510,1708947041592,-500.0,0.00019452,2]
[315217511,1708947041602,-2163.98,0.00019452,2]
[315217512,1708947041611,-505.95058571,0.00019452,2]
[315217513,1708947041620,-500.0,0.00019452,2]
[315217514,1708947041629,-16070.97,0.00019452,2]
[315217515,1708947041639,-500.0,0.00019452,2]
[315217516,1708947041648,-8832.35,0.00019452,2]
[315217517,1708947041657,-766.86,0.00019452,2]
[315217518,1708947041666,-1066.05,0.00019452,2]
[315217519,1708947041675,-500.0,0.00019452,2]
[315217521,1708947041685,-500.0,0.00019452,2]
[315217522,1708947041694,-500.0,0.00019452,2]
[315217523,1708947041703,-500.0,0.00019452,2]
[315217524,1708947041712,-3562.33,0.00019452,2]
[315217525,1708947041722,-500.0,0.00019452,2]
[315217526,1708947041731,-500.0,0.00019452,2]
[315217527,1708947041741,-500.0,0.00019452,2]
[315217528,1708947041750,-487.01483259,0.00019452,2]
[315217529,1708947041759,-1077.42,0.00019452,2]
[315217530,1708947041768,-1504.71,0.00019452,2]
[315217531,1708947041780,-552.42,0.00019452,2]
[315217532,1708947041789,-500.0,0.00019452,2]
[315217533,1708947041799,-500.0,0.00019452,2]
[315217534,1708947041808,-18212.98,0.00019452,2]
[315217535,1708947041817,-6708.01,0.00019452,2]
[315217536,1708947041826,-652.41,0.00019452,2]
[315217537,1708947041835,-500.0,0.00019452,2]
[315217538,1708947041844,-499.53437694,0.00019452,2]
[315217539,1708947041854,-1782.88,0.00019452,2]
[315217540,1708947041863,-780.39,0.00019452,2]
[315217541,1708947041872,-500.0,0.00019452,2]
[315217542,1708947041881,-203.42282125,0.00019452,2]
[315217543,1708947041890,-1289.69,0.00019452,2]
[315217544,1708947041900,-500.0,0.00019452,2]
[315217545,1708947041909,-436.52101816,0.00019452,2]
[315217546,1708947041918,-2053.58,0.00019452,2]
[315217547,1708947041928,-500.0,0.00019452,2]
[315217548,1708947041937,-1002.44,0.00019452,2]
[315217549,1708947041946,-507.00886275,0.00019452,2]
[315217550,1708947041956,-500.0,0.00019452,2]
[315217551,1708947041965,-1717.07,0.00019452,2]
[315217552,1708947041974,-500.0,0.00019452,2]
[315217553,1708947041984,-2101.37,0.00019452,2]
[315217554,1708947041993,-544.61600458,0.00019452,2]
[315217555,1708947042003,-1633.45,0.00019452,2]
[315217556,1708947042095,-500.0,0.00019452,2]
[315217557,1708947042115,-500.0,0.00019452,2]
[315217558,1708947042124,-500.0,0.00019452,2]
[315217559,1708947042133,-500.0,0.00019452,2]
[315217560,1708947042143,-500.0,0.00019452,2]
[315217561,1708947042152,-1998.17,0.00019452,2]
[315217562,1708947042161,-500.0,0.00019452,2]
[315217563,1708947042171,-380.88443286,0.00019452,2]
[315217564,1708947042180,-500.81546176,0.00019452,2]
[315217565,1708947042190,-185.27418586,0.00019452,2]
[315217566,1708947042199,-563.17,0.00019452,2]
[315217567,1708947042208,-5229.02845546,0.00019469,2]
[315217568,1708947042218,-182.85476532,0.00019474,2]
[315217569,1708947042227,-5229.02845546,0.00019476,2]
[315217570,1708947042237,-2101.38526714,0.00019477,2]
[315217571,1708947042247,-2101.38526714,0.00019481,2]
[315217572,1708947042256,-2101.38526714,0.00019488,2]
[315217573,1708947042265,-5229.02845546,0.00019491,2]
[315217574,1708947042276,-182.85476532,0.00019493,2]
[315217575,1708947042285,-182.85476532,0.00019494,2]
[315217576,1708947042294,-166.666666,0.00019627,2]
[315217577,1708947042303,-25878.22111287,0.00019654,2]
[315217578,1708947042312,-1585.25555238,0.000197,2]
[315217579,1708947042321,-1585.25555238,0.000197,2]
[315217580,1708947042330,-1585.25555238,0.000197,2]
[315217581,1708947042339,-3944.705677,0.000197,2]
[315217582,1708947042349,-3944.705677,0.000197,2]
[315217583,1708947042358,-3944.705677,0.000197,2]
[315217584,1708947042367,-200.5826354,0.000197,2]
[315217585,1708947042377,-501.48262876,0.00019726,2]
[315217586,1708947042386,-500.0,0.00019726,2]
[315217587,1708947042395,-500.0,0.00019726,2]
[315217588,1708947042404,-1406.22,0.00019726,2]
[315217589,1708947042413,-500.0,0.00019726,2]
[315217590,1708947042422,-500.0,0.00019726,2]
[315217591,1708947042432,-500.0,0.00019726,2]
[315217592,1708947042441,-500.0,0.00019726,2]
[315217593,1708947042451,-500.0,0.00019726,2]
[315217594,1708947042460,-500.0,0.00019726,2]
[315217595,1708947042469,-504.12794573,0.00019726,2]
[315217596,1708947042478,-442.89928191,0.00019726,2]
[315217597,1708947042488,-508.64002911,0.00019726,2]
[315217598,1708947042502,-607.75992688,0.00019726,2]
[315217599,1708947042511,-500.0,0.00019726,2]
[315217600,1708947042522,-500.0,0.00019726,2]
[315217601,1708947042533,-602.29,0.00019726,2]
[315217602,1708947042543,-511.17,0.00019726,2]
[315217603,1708947042552,-646.4,0.00019726,2]
[315217604,1708947042562,-1144.02,0.00019726,2]
[315217605,1708947042571,-2734.75,0.00019726,2]
[315217606,1708947042580,-1145.29,0.00019726,2]
[315217607,1708947042589,-500.0,0.00019726,2]
[315217608,1708947042599,-1275.67,0.00019726,2]
[315217609,1708947042608,-500.0,0.00019726,2]
[315217610,1708947042618,-500.0,0.00019726,2]
[315217611,1708947042628,-500.0,0.00019726,2]
[315217612,1708947042637,-500.0,0.00019726,2]
[315217613,1708947042646,-1538.45,0.00019726,2]
[315217614,1708947042655,-3092.0,0.00019726,2]
[315217615,1708947042664,-1625.69,0.00019726,2]
[315217616,1708947042673,-160.04742318,0.00019726,2]
[315217617,1708947042683,-1247.12,0.00019726,2]
[315217618,1708947042692,-500.0,0.00019726,2]
[315217619,1708947042701,-500.0,0.00019726,2]
[315217620,1708947042710,-500.0,0.00019726,2]
[315217621,1708947042720,-500.0,0.00019726,2]
[315217622,1708947042729,-672.28,0.00019726,2]
[315217623,1708947042738,-500.0,0.00019726,2]
[315217624,1708947042748,-500.0,0.00019726,2]
[315217625,1708947042758,-2163.98,0.00019726,2]
[315217626,1708947042767,-16070.97,0.00019726,2]
[315217627,1708947042779,-8832.35,0.00019726,2]
[315217628,1708947042789,-766.86,0.00019726,2]